bitfinex/quotes_ETHUSD_20250403
["timestamp","ask_amount","ask_price","bid_price","bid_amount"]
[1743722679293,0.05513657,1809.2,1808.8,6.675448]
[1743722679464,0.05513657,1809.2,1808.9,0.14635052]
[1743722679788,4.24434872,1809.4,1809.1,5.52761]
[1743722679789,0.05513657,1809.4,1809.1,5.52761]
[1743722680014,6.12503657,1809.5,1809.2,5.52719]
[1743722680312,5.303,1809.5,1809.4,5.52669]
[1743722680657,5.303,1809.5,1809.4,5.67213519]
[1743722680893,5.303,1809.5,1809.4,0.14544519]
[1743722681089,5.303,1809.5,1809.3,11.0537]
[1743722681304,5.303,1809.5,1809.4,0.14544519]
[1743722681490,5.303,1809.5,1809.4,5.67213519]
[1743722683410,5.303,1809.5,1809.4,6.22213519]
[1743722683885,11.59538,1809.8,1809.4,11.74882519]
[1743722684091,11.59538,1809.8,1809.5,5.52631]
[1743722684279,17.12109,1809.8,1809.6,0.14378964]
[1743722684485,11.59538,1809.8,1809.4,6.07654]
[1743722684805,6.0699,1809.8,1809.5,11.19663063]
[1743722685094,5.303,1809.8,1809.7,5.52566]
[1743722685568,5.303,1809.8,1809.7,5.66926868]
[1743722685982,5.303,1809.8,1809.7,0.14360868]
[1743722686361,5.303,1809.8,1809.6,11.60198]
[1743722686694,5.303,1809.8,1809.7,0.14360868]
[1743722686869,5.303,1809.8,1809.6,11.60195]
[1743722687063,5.303,1809.8,1809.7,0.14360868]
[1743722687405,5.303,1809.8,1809.6,12.762145]
[1743722687569,5.303,1809.8,1809.7,0.14360868]
[1743722687895,5.303,1809.8,1809.4,0.759541]
[1743722688194,5.303,1809.8,1809.5,11.05244]
[1743722688364,0.7669,1809.7,1809.5,11.19669346]
[1743722688690,0.82203657,1809.7,1809.5,0.14425346]
[1743722689058,6.34789657,1809.7,1809.5,0.14425346]
[1743722690189,11.87384657,1809.7,1809.5,0.14425346]
[1743722690395,6.29276,1809.7,1809.5,0.14425346]
[1743722690595,5.5262,1809.6,1809.3,5.52686]
[1743722690894,0.05513657,1809.5,1809.3,5.52686]
[1743722691315,0.05513657,1809.5,1809.2,5.52716]
[1743722691590,0.7669,1809.4,1809.2,11.05431]
[1743722692116,0.7669,1809.4,1809.2,5.52715]
[1743722692392,0.05513657,1809.3,1809.1,5.52756]
[1743722692593,5.06638529,1809.4,1809.1,11.05504]
[1743722692761,10.36938529,1809.4,1809.1,12.160581]
[1743722693163,6.12503657,1809.4,1809.1,12.160581]
[1743722693364,6.12503657,1809.4,1809.1,6.633021]
[1743722693799,11.65172657,1809.4,1809.1,5.52747]
[1743722693998,5.5272,1809.3,1808.9,1.09567985]
[1743722694205,0.7588,1809.1,1808.9,5.52811]
[1743722694405,0.7588,1809.1,1808.9,11.05624]
[1743722694567,0.81393657,1809.2,1809.0,6.633474]
[1743722694878,0.81393657,1809.2,1809.0,6.633424]
[1743722695075,11.58863,1809.4,1809.1,5.52761]
[1743722695278,11.58863,1809.4,1809.0,5.52779]
[1743722695473,6.0618,1809.4,1809.2,5.52726]
[1743722695679,6.0618,1809.4,1809.1,11.05506]
[1743722695894,6.0618,1809.4,1809.1,5.52748]
[1743722696066,6.0618,1809.4,1809.2,5.52726]
[1743722696702,6.0618,1809.4,1809.2,5.52727]
[1743722697415,0.05513657,1809.3,1809.0,5.52781]
[1743722697580,0.05513657,1809.3,1809.0,11.05562]
[1743722697985,11.5885,1809.4,1809.1,5.52752]
[1743722698183,6.0618,1809.4,1809.2,6.079932]
[1743722698710,6.0618,1809.4,1809.2,0.552752]
[1743722698915,10.52923872,1809.6,1809.2,6.079922]
[1743722699225,5.304,1809.4,1809.3,5.52689]
[1743722699942,5.304,1809.4,1809.2,6.079982]
[1743722700227,5.304,1809.4,1809.2,11.607212]
[1743722700404,5.304,1809.4,1809.2,6.079952]
[1743722700602,5.304,1809.4,1809.2,5.5272]
[1743722700925,5.304,1809.4,1809.2,5.52718]
[1743722701539,5.304,1809.4,1809.3,5.52699]
[1743722702239,5.304,1809.5,1809.4,11.05338]
[1743722702652,5.304,1809.5,1809.4,5.52669]
[1743722702938,0.7588,1809.6,1809.4,5.52669]
[1743722703152,6.0628,1809.6,1809.4,5.66066859]
[1743722703313,5.304,1809.7,1809.6,5.52587]
[1743722703648,5.304,1809.7,1809.6,5.6594866]
[1743722704019,5.304,1809.7,1809.6,0.1336166]
[1743722704740,5.304,1809.7,1809.6,5.6596966]
[1743722704959,5.304,1809.7,1809.6,11.1857766]
[1743722706548,5.304,1809.7,1809.6,12.30435426]
[1743722707147,5.303,1809.8,1809.6,12.30433426]
[1743722707333,5.303,1809.8,1809.6,5.6596866]
[1743722707649,5.303,1809.8,1809.6,5.6595866]
[1743722707847,5.303,1809.8,1809.6,5.6595766]
[1743722708047,5.303,1809.8,1809.6,11.1855566]
[1743722708235,5.303,1809.8,1809.6,5.6595766]
[1743722708642,5.45813657,1809.9,1809.7,5.52574]
[1743722709027,5.45813657,1809.9,1809.8,0.13248802]
[1743722709752,10.98329657,1809.9,1809.6,11.05187]
[1743722709945,10.98329657,1809.9,1809.8,0.13248802]
[1743722710155,10.98329657,1809.9,1809.7,0.13266896]
[1743722710311,10.98329657,1809.9,1809.8,0.13248802]
[1743722710648,10.98329657,1809.9,1809.6,5.52592]
[1743722710852,10.98329657,1809.9,1809.8,0.13248802]
[1743722711049,5.45813657,1809.9,1809.7,0.13266896]
[1743722711237,5.45813657,1809.9,1809.8,0.13248802]
[1743722711956,10.98329657,1809.9,1809.6,5.52592]
[1743722712453,10.98329657,1809.9,1809.7,0.13266896]
[1743722712833,5.45813657,1809.9,1809.6,5.52592]
[1743722713039,10.98333657,1809.9,1809.8,0.13248802]
[1743722713240,10.98333657,1809.9,1809.7,0.13266896]
[1743722713409,10.98333657,1809.9,1809.6,11.05189]
[1743722713617,10.98333657,1809.9,1809.8,0.13248802]
[1743722713840,10.98333657,1809.9,1809.7,0.13266896]
[1743722714040,10.98333657,1809.9,1809.8,0.13248802]
[1743722714236,10.98333657,1809.9,1809.6,5.52592]
[1743722714585,10.98333657,1809.9,1809.7,0.13109537]
[1743722714881,10.98333657,1809.9,1809.6,5.52592]
[1743722715076,10.98333657,1809.9,1809.7,0.13109537]
[1743722715401,10.98333657,1809.9,1809.6,5.52592]
[1743722715568,10.98333657,1809.9,1809.8,0.13091442]
[1743722715887,10.98333657,1809.9,1809.6,5.52592]
[1743722716083,4.24434872,1809.7,1809.5,5.52632]
[1743722716383,0.05513657,1809.6,1809.5,5.52632]
[1743722716691,0.7589,1809.8,1809.6,5.52595]
[1743722716843,6.21703657,1809.9,1809.7,5.52577]
[1743722717043,6.21703657,1809.9,1809.7,5.52568]
[1743722718142,6.21703657,1809.9,1809.8,0.13103545]
[1743722718569,6.21703657,1809.9,1809.7,5.52577]
[1743722718775,6.21703657,1809.9,1809.7,5.52563]
[1743722718957,6.21703657,1809.9,1809.8,0.13103545]
[1743722719558,6.21703657,1809.9,1809.6,11.05206]
[1743722719761,6.21703657,1809.9,1809.8,0.13103545]
[1743722720278,6.21703657,1809.9,1809.6,11.05201]
[1743722720585,6.21703657,1809.9,1809.7,11.18254639]
[1743722720791,0.1,1809.9,1809.8,5.52547]
[1743722721143,0.1,1809.9,1809.8,5.65650545]
[1743722721339,0.1,1809.9,1809.8,6.20650545]
[1743722721579,0.1,1809.9,1809.8,7.42107099]
[1743722722292,0.1,1809.9,1809.8,7.83457099]
[1743722724288,0.1,1809.9,1809.8,5.65650545]
[1743722724647,0.1,1809.9,1809.8,0.13103545]
[1743722725177,5.402,1809.9,1809.8,0.13103545]
[1743722725347,5.402,1809.9,1809.8,5.65650545]
[1743722728093,0.1,1809.9,1809.8,5.65650545]
[1743722728291,0.1,1809.9,1809.8,6.774719]
[1743722733698,0.1,1809.9,1809.8,7.188219]
[1743722735489,0.1,1809.9,1809.8,7.738219]
[1743722737414,6.776,1810.5,1810.3,5.52372]
[1743722737713,2.02893657,1810.5,1810.4,0.12636063]
[1743722737916,0.82113657,1810.5,1810.3,11.04764]
[1743722738116,0.82113657,1810.5,1810.4,0.12636063]
[1743722738275,0.82113657,1810.5,1810.3,5.52382]
[1743722738472,0.82113657,1810.5,1810.4,0.12636063]
[1743722738806,0.82113657,1810.5,1810.3,11.04764]
[1743722739114,0.82113657,1810.5,1810.4,0.12636063]
[1743722739418,0.82113657,1810.5,1810.3,5.5238]
[1743722739617,0.82113657,1810.5,1810.4,0.12636063]
[1743722739907,0.82113657,1810.5,1810.3,11.04762]
[1743722740114,0.82113657,1810.5,1810.4,0.12636063]
[1743722740316,0.82113657,1810.5,1810.4,5.52364]
[1743722740520,0.82113657,1810.5,1810.4,0.12636063]
[1743722740816,0.82113657,1810.5,1810.3,5.52383]
[1743722741018,0.82113657,1810.5,1810.4,0.12636063]
[1743722741380,0.82113657,1810.5,1810.3,11.04764]
[1743722741573,0.82113657,1810.5,1810.4,0.12636063]
[1743722741975,0.82113657,1810.5,1810.3,5.52381]
[1743722742192,0.82113657,1810.5,1810.4,0.12636063]
[1743722742594,0.82113657,1810.5,1810.3,5.52381]
[1743722742807,0.82113657,1810.5,1810.4,0.12636063]
[1743722743204,0.82113657,1810.5,1810.3,5.52381]
[1743722743403,0.82113657,1810.5,1810.4,0.12636063]
[1743722743720,0.82113657,1810.5,1810.3,5.52381]
[1743722743933,0.766,1810.3,1810.0,5.52456]
[1743722744133,0.766,1810.1,1809.8,11.05077]
[1743722744428,0.82113657,1810.1,1809.8,5.52536]
[1743722744909,6.34573657,1810.1,1809.8,5.52534]
[1743722745234,11.87045657,1810.1,1809.7,5.5257]
[1743722745423,5.52497,1810.0,1809.7,5.5257]
[1743722745579,0.766,1809.8,1809.7,5.5257]
[1743722746102,6.067,1809.8,1809.6,5.52602]
[1743722746286,6.12213657,1809.8,1809.6,5.52602]
[1743722746681,6.12213657,1809.8,1809.6,11.05196]
[1743722746994,6.12213657,1809.8,1809.6,5.52593]
[1743722747193,6.067,1809.8,1809.7,5.52577]
[1743722747536,5.301,1809.8,1809.7,5.52577]
[1743722747890,6.067,1809.8,1809.6,5.52593]
[1743722748195,6.067,1809.8,1809.7,0.1159357]
[1743722748608,6.067,1809.8,1809.6,11.0519]
[1743722748820,6.067,1809.8,1809.7,0.1159357]
[1743722749224,6.067,1809.8,1809.7,5.52577]
[1743722749424,6.067,1809.8,1809.7,5.6417057]
[1743722749583,15.29368872,1810.1,1809.9,5.52516]
[1743722749584,0.82113657,1810.0,1809.9,5.52516]
[1743722749790,5.301,1810.0,1809.9,5.52516]
[1743722750034,5.301,1810.0,1809.9,5.64073383]
[1743722750934,0.05513657,1810.3,1810.2,5.52422]
[1743722751089,5.301,1810.3,1810.2,5.52422]
[1743722751323,5.301,1810.3,1810.2,5.63929143]
[1743722752339,5.301,1810.3,1810.2,6.75567357]
[1743722752550,5.301,1810.3,1810.2,5.63929143]
[1743722754661,5.301,1810.3,1810.2,5.63932143]
[1743722755091,10.42908529,1810.3,1810.2,0.11507143]
[1743722755432,10.42908529,1810.3,1810.1,5.52443]
[1743722755772,10.42908529,1810.3,1810.2,0.11434669]
[1743722756242,10.42908529,1810.3,1810.1,5.52443]
[1743722756428,10.42908529,1810.3,1810.2,0.11434669]
[1743722756853,10.42908529,1810.3,1810.1,5.52443]
[1743722757030,10.42908529,1810.3,1810.2,0.11458823]
[1743722757364,10.42908529,1810.3,1810.1,5.52443]
[1743722757580,10.42908529,1810.3,1810.2,0.11458823]
[1743722757952,6.18473657,1810.3,1810.2,5.52425]
[1743722758157,6.1296,1810.3,1810.2,0.11458823]
[1743722758342,6.1296,1810.3,1810.1,5.52442]
[1743722758670,6.10925094,1810.3,1810.2,0.11458823]
[1743722759086,6.10925094,1810.3,1810.1,5.52442]
[1743722759382,6.10925094,1810.3,1810.2,0.11458823]
[1743722759750,6.16438751,1810.3,1810.1,5.52442]
[1743722759950,6.16438751,1810.3,1810.2,0.11462848]
[1743722760151,6.16438751,1810.3,1810.1,5.52442]
[1743722760487,6.16438751,1810.3,1810.2,0.11462848]
[1743722760790,15.93267623,1810.3,1810.0,5.52476]
[1743722760967,15.87753966,1810.3,1810.0,5.52476]
[1743722761286,0.05513657,1810.2,1810.1,0.11480935]
[1743722761788,1.64840619,1810.2,1810.1,0.11480935]
[1743722762093,16.97805619,1810.2,1810.1,0.11480935]
[1743722762294,6.32062,1809.9,1809.6,5.52597]
[1743722762475,5.35613657,1809.8,1809.6,5.52594]
[1743722762672,5.35613657,1809.8,1809.7,0.11557327]
[1743722762876,5.35613657,1809.8,1809.7,5.64134327]
[1743722763072,5.35613657,1809.8,1809.7,5.52577]
[1743722763273,5.301,1809.8,1809.7,5.64134327]
[1743722764405,5.301,1809.8,1809.7,0.11557327]
[1743722764765,0.7954,1809.7,1809.3,5.52698]
[1743722764968,4.24434872,1809.5,1809.2,5.52713]
[1743722765168,6.15153657,1809.4,1809.2,5.52713]
[1743722765369,5.301,1809.4,1809.3,5.52699]
[1743722765678,5.301,1809.4,1809.2,5.52713]
[1743722765869,5.35613657,1809.4,1809.2,5.52713]
[1743722766362,5.35613657,1809.4,1809.2,11.05429]
[1743722766769,5.35613657,1809.4,1809.2,5.52713]
[1743722767197,5.35613657,1809.4,1809.3,5.52699]
[1743722767502,5.301,1809.4,1809.2,5.52713]
[1743722767902,5.301,1809.4,1809.3,5.52699]
[1743722768499,5.301,1809.7,1809.6,5.526]
[1743722768816,6.01,1809.9,1809.8,5.52547]
[1743722769103,5.35613657,1810.0,1809.9,5.52516]
[1743722769298,5.301,1810.0,1809.9,5.52516]
[1743722769455,5.35613657,1810.1,1809.5,5.93983]
[1743722769662,5.35613657,1810.1,1809.6,6.120063]
[1743722769997,5.35613657,1810.1,1809.9,11.05001]
[1743722770395,0.81113657,1810.2,1809.8,0.4135]
[1743722770605,0.05513657,1810.2,1810.1,5.52455]
[1743722770775,5.35613657,1810.3,1810.2,5.52425]
[1743722771159,5.35613657,1810.3,1810.1,5.52445]
[1743722771360,5.35613657,1810.3,1810.1,5.52442]
[1743722771890,5.35613657,1810.3,1810.1,11.04886]
[1743722772076,5.35613657,1810.3,1810.1,5.52442]
[1743722772396,9.60048529,1810.3,1810.0,11.04956]
[1743722772598,15.12453529,1810.3,1810.0,5.52474]
[1743722772798,5.52431,1810.2,1809.9,5.52516]
[1743722772973,0.05513657,1810.1,1810.0,5.52486]
[1743722773305,18.36321825,1810.3,1810.0,5.52486]
[1743722773801,18.36321825,1810.3,1810.0,5.52484]
[1743722774016,0.05513657,1810.2,1809.9,5.52501]
[1743722774204,5.00034872,1810.1,1809.9,5.52515]
[1743722774403,0.05513657,1810.0,1809.9,5.52515]
[1743722774617,0.05513657,1810.0,1809.8,5.52535]
[1743722774927,0.05513657,1810.0,1809.8,5.52545]
[1743722775276,0.05513657,1810.0,1809.7,5.52573]
[1743722775680,5.58002657,1810.0,1809.7,5.52573]
[1743722775878,6.28167,1809.8,1809.4,6.0766]
[1743722776083,4.29948529,1809.7,1809.5,5.5261]
[1743722776313,0.05513657,1809.7,1809.5,11.05237]
[1743722776923,0.05513657,1809.7,1809.5,5.5261]
[1743722777234,6.766,1810.0,1809.8,5.52535]
[1743722777521,4.24434872,1809.9,1809.6,5.52601]
[1743722777820,0.05513657,1809.8,1809.6,5.52596]
[1743722778179,0.05513657,1809.8,1809.7,0.10831644]
[1743722778377,0.05513657,1809.8,1809.6,5.52593]
[1743722778622,0.05513657,1809.8,1809.7,0.10835666]
[1743722778783,1.0376021,1809.8,1809.7,0.10835666]
[1743722778985,0.756,1809.7,1809.5,5.52629]
[1743722779291,6.057,1809.7,1809.6,5.52608]
[1743722779519,6.057,1809.7,1809.5,11.05252]
[1743722779808,6.057,1809.7,1809.6,5.52608]
[1743722780016,6.057,1809.7,1809.5,11.0525]
[1743722780328,6.057,1809.7,1809.5,5.52625]
[1743722780684,6.11213657,1809.7,1809.5,5.52625]
[1743722781307,6.11213657,1809.7,1809.6,5.52608]
[1743722781512,6.057,1809.7,1809.6,5.52608]
[1743722781814,6.057,1809.7,1809.5,11.05249]
[1743722782019,6.057,1809.7,1809.5,5.52624]
[1743722782991,6.057,1809.7,1809.5,11.05252]
[1743722783188,5.301,1809.7,1809.6,5.52608]
[1743722783386,5.301,1809.8,1809.7,5.52577]
[1743722783593,5.301,1809.8,1809.7,5.52568]
[1743722783894,47.73965,1810.3,1810.0,5.52475]
[1743722784110,5.35713657,1810.2,1810.0,5.52475]
[1743722784413,5.35713657,1810.2,1810.0,11.04947]
[1743722784622,5.35713657,1810.2,1810.0,5.52472]
[1743722784788,5.35713657,1810.2,1809.9,5.52505]
[1743722785139,5.35713657,1810.2,1810.0,0.1081759]
[1743722785320,5.35713657,1810.2,1810.0,5.6329759]
[1743722785621,5.35713657,1810.2,1810.0,5.6328859]
[1743722786322,5.35713657,1810.2,1810.0,11.1576259]
[1743722786478,5.35713657,1810.2,1810.0,5.6328859]
[1743722786683,5.35713657,1810.2,1810.0,11.1576559]
[1743722786885,5.35713657,1810.2,1810.0,5.6328859]
[1743722787086,5.35713657,1810.2,1810.0,0.1081759]
[1743722787301,16.48861639,1810.2,1809.9,5.52503]
[1743722787519,16.43347982,1810.2,1809.9,11.05008]
[1743722787708,0.05513657,1810.1,1810.0,0.1081759]
[1743722788520,4.29948529,1810.1,1810.0,0.1081759]
[1743722788815,10.57673529,1810.1,1810.0,0.1081759]
[1743722789037,12.71704682,1810.1,1810.0,0.1081759]
[1743722789337,12.66191025,1810.1,1809.8,5.52536]
[1743722789507,0.05513657,1810.0,1809.9,0.10835681]
[1743722789838,0.05513657,1810.0,1809.8,11.05069]
[1743722790039,0.05513657,1810.0,1809.9,0.10835681]
[1743722790512,0.05513657,1810.0,1809.8,11.05068]
[1743722790714,0.05513657,1810.0,1809.9,0.10835681]
[1743722790913,0.05513657,1810.0,1809.9,5.63351681]
[1743722791315,0.80783657,1810.1,1809.9,6.74940549]
[1743722791728,0.80783657,1810.1,1809.9,6.74934549]
[1743722792344,0.80783657,1810.1,1809.9,12.27440549]
[1743722792551,0.80783657,1810.1,1809.9,6.74930549]
[1743722793450,0.80783657,1810.1,1809.9,12.27433549]
[1743722794042,5.35713657,1810.2,1810.0,6.75228355]
[1743722794240,42.2157,1810.3,1810.0,5.52476]
[1743722794442,5.35613657,1810.2,1810.0,11.04952]
[1743722794646,5.35613657,1810.2,1810.1,0.10839718]
[1743722795346,5.35613657,1810.2,1810.1,5.63294718]
[1743722795545,5.35613657,1810.2,1810.1,0.10839718]
[1743722795753,5.35613657,1810.2,1810.1,5.63294718]
[1743722796045,5.35613657,1810.2,1810.1,0.10839718]
[1743722796542,5.35613657,1810.2,1810.1,5.63294718]
[1743722797348,5.301,1810.2,1810.1,5.63294718]
[1743722798049,5.301,1810.2,1810.1,0.10839718]
[1743722798252,12.18535,1810.2,1810.1,0.10839718]
[1743722798551,5.52467,1810.1,1809.8,5.52546]
[1743722798712,6.35525,1809.9,1809.6,5.52607]
[1743722798919,5.35613657,1809.8,1809.6,5.52607]
[1743722799757,5.35613657,1809.8,1809.5,5.52633]
[1743722800054,5.35613657,1809.8,1809.6,5.526]
[1743722800349,5.35613657,1809.8,1809.6,11.05193]
[1743722800555,5.35613657,1809.8,1809.6,5.52593]
[1743722800856,5.35613657,1809.8,1809.6,5.52601]
[1743722801053,5.35613657,1809.8,1809.5,6.120343]
[1743722801245,10.88160657,1809.8,1809.5,11.646573]
[1743722801442,5.35613657,1809.8,1809.5,11.646573]
[1743722802456,5.35613657,1809.8,1809.5,6.120273]
[1743722802638,5.35613657,1809.8,1809.6,5.52603]
[1743722802954,5.35613657,1809.8,1809.5,6.120273]
[1743722803141,10.88160657,1809.8,1809.5,6.120273]
[1743722803344,10.88160657,1809.8,1809.5,11.646543]
[1743722803540,5.35613657,1809.8,1809.5,0.593983]
[1743722803745,5.35613657,1809.8,1809.4,0.4135]
[1743722803918,5.35613657,1809.8,1809.6,5.52598]
[1743722804356,10.88160657,1809.8,1809.5,5.52637]
[1743722804860,10.88160657,1809.8,1809.5,5.52628]
[1743722805024,10.88160657,1809.8,1809.4,5.94008]
[1743722805225,10.88160657,1809.8,1809.4,6.534088]
[1743722805561,5.35613657,1809.8,1809.5,5.52629]
[1743722805857,5.35613657,1809.8,1809.7,5.52577]
[1743722806059,5.301,1809.8,1809.7,5.52577]
[1743722808029,5.301,1809.8,1809.6,11.05202]
[1743722808225,5.301,1809.8,1809.7,0.11032756]
[1743722808566,5.301,1809.8,1809.4,1.007508]
[1743722808738,5.35613657,1809.8,1809.7,0.11032756]
[1743722808929,5.35613657,1809.8,1809.6,5.52602]
[1743722809129,5.35613657,1809.8,1809.7,0.11012643]
[1743722809557,5.35613657,1809.8,1809.5,5.52608]
[1743722809857,5.35613657,1809.8,1809.6,0.66291539]
[1743722810067,0.83,1809.9,1809.7,5.52577]
[1743722810250,5.301,1809.8,1809.7,5.63589643]
[1743722810558,5.301,1809.8,1809.7,0.11012643]
[1743722810860,5.301,1809.8,1809.6,6.078568]
[1743722811041,5.301,1809.8,1809.7,0.11000575]
[1743722811225,5.35613657,1809.8,1809.7,0.11000575]
[1743722811426,5.35613657,1809.8,1809.6,5.52601]
[1743722811625,5.35613657,1809.8,1809.7,0.11000575]
[1743722811864,5.35613657,1809.8,1809.6,5.52601]
[1743722812063,5.35613657,1809.8,1809.7,0.11000575]
[1743722812359,5.35613657,1809.8,1809.6,5.52594]
[1743722812564,5.35613657,1809.8,1809.7,0.11000575]
[1743722812931,5.35613657,1809.8,1809.6,6.078534]
[1743722813264,5.35613657,1809.8,1809.7,0.11000575]
[1743722813679,5.301,1809.8,1809.4,0.4135]
[1743722813834,5.301,1809.8,1809.7,6.0493562]
[1743722814031,5.301,1809.8,1809.7,6.54420562]
[1743722814225,5.301,1809.9,1809.7,12.18003227]
[1743722814447,5.301,1809.9,1809.7,6.65426227]
[1743722814662,5.301,1809.9,1809.7,6.65424227]
[1743722814865,5.301,1809.9,1809.8,5.52547]
[1743722815035,5.301,1809.9,1809.8,11.16092571]
[1743722815237,6.01,1810.1,1809.9,5.52489]
[1743722815442,5.301,1810.0,1809.9,11.04986]
[1743722816676,5.301,1810.0,1809.9,5.52489]
[1743722818571,5.35613657,1810.0,1809.7,5.52564]
[1743722818876,5.35613657,1810.0,1809.8,11.05055]
[1743722819036,5.301,1810.0,1809.9,5.52516]
[1743722819638,5.301,1810.0,1809.8,5.52541]
[1743722820244,5.301,1810.0,1809.8,11.05075]
[1743722820444,5.301,1810.0,1809.9,5.52516]
[1743722821057,0.05513657,1810.1,1810.0,5.52486]
[1743722821387,5.301,1810.4,1810.3,5.52394]
[1743722821698,5.301,1810.4,1810.2,11.04835]
[1743722821984,5.301,1810.4,1810.2,11.04822]
[1743722822180,5.301,1810.4,1810.2,11.04824]
[1743722822353,5.301,1810.4,1810.2,5.5241]
[1743722822556,5.301,1810.4,1810.3,5.52394]
[1743722823083,5.301,1810.4,1810.3,5.63137213]
[1743722824784,41.466,1810.6,1810.4,5.52333]
[1743722825079,46.766,1810.6,1810.5,0.10707049]
[1743722826084,41.466,1810.6,1810.5,5.63040049]
[1743722826378,46.766,1810.6,1810.5,5.63040049]
[1743722827085,46.766,1810.6,1810.5,0.10707049]
[1743722827292,46.766,1810.6,1810.3,5.5239]
[1743722827455,52.2218,1810.6,1810.5,0.12684395]
[1743722827650,52.2218,1810.6,1810.2,5.93774]
[1743722827651,61.98926872,1810.6,1810.2,5.52422]
[1743722827856,5.52352,1810.5,1810.1,11.04883]
[1743722828260,5.52352,1810.5,1810.1,5.52437]
[1743722828465,6.30327,1810.3,1810.0,5.52482]
[1743722828793,5.3,1810.2,1810.0,5.52475]
[1743722829292,5.3,1810.2,1810.1,5.52455]
[1743722829879,5.3,1810.2,1810.0,5.52471]
[1743722830200,5.3,1810.2,1810.1,5.52455]
[1743722830357,5.3,1810.2,1810.0,5.52471]
[1743722830577,5.3,1810.2,1810.1,5.52455]
[1743722830779,5.3,1810.2,1810.1,6.31851083]
[1743722830951,6.01,1810.5,1810.4,5.52364]
[1743722831285,11.309,1810.5,1810.3,5.52382]
[1743722831883,11.309,1810.5,1810.4,5.52364]
[1743722832786,11.309,1810.5,1810.4,5.93714]
[1743722832990,11.309,1810.5,1810.4,7.083236]
[1743722834093,6.0782,1810.5,1810.3,5.52382]
[1743722834253,5.299,1810.5,1810.4,5.52364]
[1743722834456,46.765,1810.6,1810.4,11.04713]
[1743722834677,47.5442,1810.6,1810.4,11.04713]
[1743722835079,57.31160872,1810.6,1810.2,5.52408]
[1743722835255,0.05513657,1810.5,1810.2,11.04819]
[1743722835585,0.05513657,1810.5,1810.3,5.52386]
[1743722836290,0.05513657,1810.5,1810.2,5.52408]
[1743722836470,0.05513657,1810.5,1810.3,5.52392]
[1743722836996,0.05513657,1810.5,1810.2,5.52408]
[1743722837288,5.57850657,1810.5,1810.2,5.52408]
[1743722837589,0.05513657,1810.5,1810.2,5.5241]
[1743722837969,0.05513657,1810.5,1810.2,11.04822]
[1743722838168,0.05513657,1810.5,1810.3,0.12583034]
[1743722838659,0.05513657,1810.5,1810.3,5.64976034]
[1743722840095,0.05513657,1810.5,1810.4,5.52364]
[1743722840299,0.05513657,1810.5,1810.4,5.64959104]
[1743722840593,0.05513657,1810.5,1810.4,0.12595104]
[1743722840968,0.05513657,1810.5,1810.3,5.52384]
[1743722841298,0.05513657,1810.5,1810.4,0.12595104]
[1743722841603,0.05513657,1810.5,1810.3,5.52383]
[1743722841781,0.05513657,1810.5,1810.4,0.12595104]
[1743722841972,5.299,1810.6,1810.4,5.64959104]
[1743722842299,5.299,1810.6,1810.5,0.12573408]
[1743722842662,5.299,1810.6,1810.4,5.5236]
[1743722842863,5.57786657,1810.7,1810.5,0.12573408]
[1743722843090,5.299,1810.6,1810.5,0.12573408]
[1743722843277,5.299,1810.6,1810.5,5.52333]
[1743722843596,5.299,1810.6,1810.5,5.64906408]
[1743722843894,0.05513657,1810.7,1810.5,5.64906408]
[1743722844065,5.299,1810.6,1810.5,0.12573408]
[1743722844265,5.299,1810.6,1810.2,11.0483]
[1743722844266,0.7893,1810.5,1810.2,11.0483]
[1743722844594,0.84443657,1810.5,1810.2,11.0483]
[1743722844791,0.84443657,1810.5,1810.0,0.9635]
[1743722844792,0.05513657,1810.5,1810.4,5.52364]
[1743722845091,0.05513657,1810.5,1810.3,5.52387]
[1743722845092,0.05513657,1810.5,1810.3,5.52394]
[1743722845301,5.299,1810.4,1810.3,5.52394]
[1743722846567,5.299,1810.4,1810.3,6.628757]
[1743722847083,5.299,1810.4,1810.3,7.042257]
[1743722847654,0.84443657,1810.7,1810.3,7.042257]
[1743722847959,5.299,1810.6,1810.5,5.52327]
[1743722848592,5.299,1810.6,1810.4,5.52351]
[1743722849298,5.299,1810.6,1810.4,11.04704]
[1743722849600,5.299,1810.6,1810.5,5.52333]
[1743722851092,5.299,1810.6,1810.5,6.628014]
[1743722851394,0.05513657,1810.8,1810.5,6.628014]
[1743722851588,5.298,1810.6,1810.5,5.52333]
[1743722851896,0.05513657,1810.8,1810.5,5.52333]
[1743722851897,5.57761657,1810.8,1810.5,5.52333]
[1743722852076,5.298,1810.6,1810.5,5.52333]
[1743722853202,5.298,1810.6,1810.5,5.64838878]
[1743722859896,0.9129,1810.9,1810.7,5.52272]
[1743722860098,0.9129,1810.9,1810.6,5.52286]
[1743722860099,5.298,1810.8,1810.6,5.52286]
[1743722860327,5.298,1810.8,1810.6,11.04577]
[1743722860651,5.298,1810.8,1810.7,5.52272]
[1743722860815,0.96803657,1810.9,1810.7,5.52272]
[1743722861022,0.96803657,1810.9,1810.7,5.52259]
[1743722861223,5.298,1810.8,1810.7,11.04522]
[1743722861561,5.298,1810.8,1810.7,5.52259]
[1743722863363,5.298,1810.8,1810.5,5.5233]
[1743722863533,0.05513657,1810.7,1810.5,11.04644]
[1743722863863,0.05513657,1810.7,1810.5,11.04645]
[1743722864157,5.35313657,1810.8,1810.5,11.04645]
[1743722864453,5.35313657,1810.8,1810.6,5.52298]
[1743722865332,5.35313657,1810.8,1810.6,5.52292]
[1743722865532,5.35313657,1810.8,1810.6,11.04581]
[1743722865763,5.35313657,1810.8,1810.7,5.52272]
[1743722865961,0.05513657,1810.8,1810.7,5.52272]
[1743722866273,5.298,1810.8,1810.7,5.52272]
[1743722867642,0.1,1810.9,1810.8,5.93592]
[1743722868680,0.1,1810.9,1810.8,6.48592]